fUSD/lending_fUSD_20241121
["ID","MTS","AMOUNT","RATE_DAILY","PERIOD"]
[342857071,1732187228246,-500.0,0.00024932,2]
[342857072,1732187228270,-1461.04038368,0.00025379,2]
[342857073,1732187228291,-156.29,0.00025479,2]
[342857074,1732187228312,-123.74263013,0.00026401,2]
[342857075,1732187235096,-33.10736987,0.00026401,2]
[342857076,1732187235121,-1461.04038366,0.00026886,2]
[342857077,1732187235142,-420.73,0.00026986,120]
[342857078,1732187235163,-1183.889,0.00027771,2]
[342857079,1732187235185,-240.0,0.0002794,2]
[342857080,1732187235210,-240.0,0.0002939,2]
[342857081,1732187235233,-162.77,0.00030136,2]
[342857082,1732187235273,-240.0,0.0003085,2]
[342857083,1732187235303,-250.0,0.00031,2]
[342857084,1732187235327,-240.0,0.0003231,2]
[342857085,1732187235351,-300.0,0.00033,2]
[342857086,1732187235374,-240.0,0.0003376,2]
[342857087,1732187235399,-1352.82,0.00034043,2]
[342857088,1732187235423,-400.0,0.00034999,2]
[342857089,1732187235450,-200.0,0.00034999,30]
[342857090,1732187235474,-150.0,0.00035,15]
[342857091,1732187235498,-350.0,0.00035,2]
[342857092,1732187235526,-240.0,0.0003522,2]
[342857093,1732187235551,-156.29,0.00035616,2]
[342857094,1732187235573,-250.0,0.00035883,2]
[342857095,1732187235597,-200.0,0.00035947,2]
[342857096,1732187235619,-1430.92,0.00036003,2]
[342857097,1732187235643,-1956.71422647,0.00036025,2]
[342857098,1732187238176,-1337.04042547,0.00036025,2]
[342857103,1732187352341,-150.0,0.00016868,2]
[342857117,1732187431949,-699.97553986,0.00035943,2]
[342857118,1732187431958,-20606.24534806,0.00036025,2]
[342857119,1732187431968,-450.28,0.00036043,120]
[342857120,1732187431978,-250.0,0.00036221,2]
[342857121,1732187431988,-2833.39,0.0003623,2]
[342857122,1732187431997,-420.61,0.00036246,120]
[342857123,1732187432006,-1000.0,0.00036246,2]
[342857124,1732187432015,-250.0,0.00036248,120]
[342857125,1732187432024,-1352.82,0.00036307,2]
[342857126,1732187432033,-1183.889,0.00036374,2]
[342857127,1732187432042,-204.0,0.0003667,30]
[342857128,1732187432051,-240.0,0.0003667,2]
[342857129,1732187432060,-449.43,0.00036832,2]
[342857130,1732187432070,-78000.999997,0.00037,2]
[342857131,1732187432079,-400.0,0.00037,2]
[342857132,1732187432087,-699.97553985,0.00037034,2]
[342857133,1732187432097,-250.0,0.00037173,2]
[342857134,1732187432106,-200.0,0.00037186,2]
[342857135,1732187432115,-200.0,0.0003724,2]
[342857136,1732187432124,-159.66,0.00037407,120]
[342857137,1732187432133,-156.85,0.0003746,2]
[342857138,1732187432145,-491.0,0.00037525,3]
[342857139,1732187432155,-764.41,0.00037534,2]
[342857140,1732187432164,-764.41,0.00037534,2]
[342857141,1732187432173,-764.41,0.00037534,2]
[342857142,1732187432184,-764.41,0.00037534,2]
[342857144,1732187432193,-764.41,0.00037534,2]
[342857146,1732187432203,-1490.867,0.00037539,48]
[342857148,1732187432212,-3000.0,0.00037539,27]
[342857150,1732187432222,-150.0,0.00037729,2]
[342857153,1732187432232,-150.0,0.00037827,2]
[342857154,1732187432242,-150.0,0.00037896,2]
[342857157,1732187432251,-164.67,0.00037898,2]
[342857159,1732187432260,-1528.82,0.00037923,2]
[342857160,1732187432270,-898.55556402,0.00037982,2]
[342857163,1732187432279,-343.54632326,0.00038,60]
[342857164,1732187432289,-200.0,0.00038,120]
[342857167,1732187432298,-3065.4870279,0.0003803,2]
[342857168,1732187432308,-150.0,0.00038058,2]
[342857171,1732187432317,-150.0,0.00038082,2]
[342857173,1732187432327,-362.63,0.00038082,2]
[342857174,1732187432337,-150.0,0.00038082,2]
[342857176,1732187432346,-362.63,0.00038082,2]
[342857178,1732187432355,-362.63,0.00038082,2]
[342857180,1732187432365,-150.0,0.00038082,2]
[342857182,1732187432375,-362.63,0.00038082,2]
[342857184,1732187432385,-150.0,0.00038082,2]
[342857186,1732187432395,-150.0,0.00038082,2]
[342857188,1732187432404,-362.63,0.00038082,2]
[342857190,1732187432414,-362.63,0.00038082,2]
[342857192,1732187432423,-150.0,0.00038082,2]
[342857194,1732187432434,-362.63,0.00038082,2]
[342857196,1732187432444,-150.0,0.00038082,2]
[342857198,1732187432454,-150.0,0.00038082,2]
[342857200,1732187432463,-362.63,0.00038082,2]
[342857202,1732187432473,-150.0,0.00038082,2]
[342857204,1732187432483,-150.0,0.00038082,2]
[342857206,1732187432492,-362.63,0.00038082,2]
[342857208,1732187432501,-150.0,0.00038105,2]
[342857209,1732187432511,-699.97553985,0.00038125,2]
[342857210,1732187432520,-204.0,0.0003813,30]
[342857211,1732187432530,-240.0,0.0003813,2]
[342857212,1732187432539,-3000.0,0.0003822,30]
[342857213,1732187432548,-150.0,0.00038225,2]
[342857214,1732187432557,-153.0,0.00038327,2]
[342857215,1732187432566,-153.0,0.00038327,2]
[342857216,1732187432576,-153.0,0.00038327,2]
[342857217,1732187432586,-153.0,0.00038327,2]
[342857218,1732187432596,-153.0,0.00038327,2]
[342857219,1732187432605,-153.0,0.00038327,2]
[342857220,1732187432614,-153.0,0.00038327,2]
[342857221,1732187432624,-153.0,0.00038327,2]
[342857222,1732187432633,-153.0,0.00038327,2]
[342857223,1732187432643,-153.0,0.00038327,2]
[342857224,1732187432652,-153.0,0.00038327,2]
[342857225,1732187432661,-153.0,0.00038327,2]
[342857226,1732187432671,-153.0,0.00038327,2]
[342857227,1732187432682,-153.0,0.00038327,2]
[342857228,1732187432692,-153.0,0.00038327,2]
[342857229,1732187432702,-725.26,0.00038334,2]
[342857230,1732187432712,-300.0,0.00038334,2]
[342857231,1732187432721,-3993.0,0.000384,3]
[342857232,1732187432732,-898.555564,0.00038468,2]
[342857233,1732187432741,-150.0,0.00038487,2]
[342857234,1732187432752,-150.0,0.000385,2]
[342857235,1732187432762,-150.0,0.00038523,2]
[342857236,1732187432771,-150.0,0.00038547,2]
[342857237,1732187432781,-150.0,0.00038547,2]
[342857238,1732187432790,-150.0,0.00038547,2]
[342857239,1732187432800,-150.0,0.00038547,2]
[342857240,1732187432809,-150.0,0.00038547,2]
[342857241,1732187432818,-150.0,0.00038547,2]
[342857242,1732187432828,-150.0,0.00038547,2]
[342857243,1732187432837,-150.0,0.00038547,2]
[342857244,1732187432846,-362.63,0.00038547,2]
[342857245,1732187432856,-362.63,0.00038547,2]
[342857246,1732187432865,-150.0,0.00038547,2]
[342857247,1732187432874,-362.63,0.00038547,2]
[342857248,1732187432884,-725.26,0.00038547,2]
[342857249,1732187432893,-150.0,0.00038565,2]
[342857250,1732187432903,-1352.82,0.00038571,2]
[342857251,1732187432912,-555.42,0.00038577,10]
[342857252,1732187432921,-150.0,0.00038587,2]
[342857253,1732187432934,-150.0,0.00038593,2]
[342857254,1732187432943,-150.0,0.00038601,2]
[342857255,1732187432952,-150.0,0.00038742,2]
[342857256,1732187432961,-150.0,0.00038744,2]
[342857257,1732187432971,-1054.0,0.00038839,5]
[342857258,1732187432980,-150.0,0.00038865,2]
[342857259,1732187432989,-192.542,0.0003887,90]
[342857260,1732187433000,-165.11,0.00038925,2]
[342857261,1732187433010,-150.0,0.00038927,2]
[342857262,1732187433019,-150.0,0.00038935,2]
[342857263,1732187433029,-150.0,0.00038942,2]
[342857264,1732187433039,-483.0,0.00038953,2]
[342857265,1732187433049,-1371.2222,0.00038953,2]
[342857266,1732187433059,-38802.43563906,0.00038953,15]
[342857267,1732187433069,-5668.2160953,0.00038953,15]
[342857268,1732187433078,-898.555564,0.00038953,2]
[342857269,1732187433087,-150.0,0.0003898,2]
[342857270,1732187433097,-16628.4948023,0.00039,120]
[342857271,1732187433107,-200.0,0.00039,120]
[342857272,1732187433117,-450.0,0.00039,2]
[342857273,1732187433125,-4773.90430632,0.00039,14]
[342857274,1732187433135,-150.0,0.00039,2]
[342857275,1732187433145,-150.0,0.00039002,2]
[342857276,1732187433159,-150.0,0.00039034,2]
[342857277,1732187433168,-594.13,0.00039043,3]
[342857278,1732187433178,-179023.2619,0.00039053,2]
[342857279,1732187433194,-1669.04052437,0.00039053,2]
[342857280,1732187433208,-11905.11517563,0.00039053,2]
[342857281,1732187433219,-239.73587987,0.00039053,2]
[342857282,1732187433230,-150.0,0.00039101,2]
[342857283,1732187433240,-153.0,0.00039194,2]
[342857284,1732187433250,-153.0,0.00039194,2]
[342857285,1732187433261,-153.0,0.00039194,2]
[342857286,1732187433271,-153.0,0.00039194,2]
[342857287,1732187433282,-153.0,0.00039194,2]
[342857288,1732187433292,-153.0,0.00039194,2]
[342857289,1732187433302,-153.0,0.00039194,2]
[342857290,1732187433312,-153.0,0.00039194,2]
[342857291,1732187433321,-153.0,0.00039194,2]
[342857292,1732187433331,-153.0,0.00039194,2]
[342857293,1732187433341,-153.0,0.00039194,2]
[342857294,1732187433351,-153.0,0.00039194,2]
[342857295,1732187433361,-153.0,0.00039194,2]
[342857296,1732187433371,-153.0,0.00039194,2]
[342857297,1732187433381,-153.0,0.00039194,2]
[342857298,1732187433392,-153.0,0.00039194,2]
[342857299,1732187433402,-153.0,0.00039194,2]
[342857300,1732187433411,-153.0,0.00039194,2]
[342857301,1732187433422,-153.0,0.00039194,2]
[342857302,1732187433436,-153.0,0.00039194,2]
[342857303,1732187433447,-153.0,0.00039194,2]
[342857304,1732187433457,-153.0,0.00039194,2]
[342857305,1732187433468,-153.0,0.00039194,2]
[342857306,1732187433478,-153.0,0.00039194,2]
[342857307,1732187433487,-153.0,0.00039194,2]
[342857308,1732187433497,-153.0,0.00039194,2]
[342857309,1732187433507,-153.0,0.00039194,2]
[342857310,1732187433517,-153.0,0.00039194,2]
[342857311,1732187433527,-153.0,0.00039194,2]
[342857312,1732187433536,-153.0,0.00039194,2]
[342857313,1732187433546,-153.0,0.00039194,2]
[342857314,1732187433557,-153.0,0.00039194,2]
[342857315,1732187433566,-153.0,0.00039194,2]
[342857316,1732187433577,-150.0,0.00039195,2]
[342857317,1732187433587,-150.0,0.00039212,2]
[342857318,1732187433597,-150.0,0.00039218,2]
[342857319,1732187433607,-150.0,0.00039231,2]
[342857320,1732187433618,-150.0,0.00039259,2]
[342857321,1732187433629,-150.0,0.00039308,2]
[342857322,1732187433639,-150.0,0.00039314,2]
[342857323,1732187433650,-11960.89235957,0.00039367,15]
[342857324,1732187433662,-19045.94042266,0.00039367,15]
[342857325,1732187433675,-4260.55313862,0.00039367,15]
[342857326,1732187433691,-3535.04971817,0.00039367,15]
[342857327,1732187433701,-1260.79314841,0.00039367,15]
[342857328,1732187433712,-4407.42294687,0.00039367,15]
[342857329,1732187433723,-448.90705313,0.0003947,34]
[342857330,1732187433734,-2551.09294687,0.0003947,34]
[342857331,1732187433744,-150.0,0.00039537,2]
[342857332,1732187433754,-2000.0,0.00039543,31]
[342857333,1732187433765,-204.0,0.0003958,30]
[342857334,1732187433775,-240.0,0.0003958,2]
[342857335,1732187433785,-150.0,0.000396,2]
[342857336,1732187433795,-433.33,0.00039616,2]
[342857337,1732187433805,-433.33,0.00039616,2]
[342857338,1732187433815,-433.33,0.00039616,2]
[342857339,1732187433825,-433.33,0.00039616,2]
[342857340,1732187433835,-150.0,0.00039622,2]
[342857341,1732187433845,-150.0,0.00039624,2]
[342857342,1732187433855,-280.0,0.00039626,60]
[342857343,1732187433865,-150.0,0.00039643,2]
[342857344,1732187433875,-150.0,0.00039649,2]
[342857345,1732187433886,-2500.0,0.00039675,2]
[342857346,1732187433897,-150.0,0.00039678,2]
[342857347,1732187433907,-588.47031558,0.00039681,12]
[342857348,1732187433917,-150.0,0.0003973,2]
[342857349,1732187433926,-150.0,0.00039751,2]
[342857350,1732187433938,-83106.34527633,0.00039781,120]
[342857351,1732187433950,-8818.47,0.00039781,120]
[342857352,1732187433961,-9650.018,0.00039781,120]
[342857354,1732187437854,-150.0,0.00037135,2]
[342857355,1732187437863,-150.0,0.00037216,2]
[342857356,1732187437873,-150.0,0.00037221,2]
[342857357,1732187437882,-150.0,0.00037253,2]
[342857358,1732187437891,-150.0,0.0003744,2]
[342857359,1732187437900,-150.0,0.00037491,2]
[342857360,1732187437910,-150.0,0.00037496,2]
[342857361,1732187437920,-167.82061592,0.00037571,2]
[342857362,1732187437929,-150.0,0.0003769,2]
[342857363,1732187437938,-150.0,0.00038458,2]
[342857364,1732187437950,-150.0,0.00038543,2]
[342857365,1732187437960,-150.0,0.00038679,2]
[342857366,1732187437969,-150.0,0.0003904,2]
[342857367,1732187437979,-150.0,0.00039052,2]
[342857368,1732187437989,-150.0,0.00039071,2]
[342857369,1732187437998,-150.0,0.00039082,2]
[342857370,1732187438008,-150.0,0.0003929,2]
[342857371,1732187438017,-150.0,0.00039554,2]
[342857372,1732187438026,-150.0,0.00039566,2]
[342857373,1732187438035,-150.0,0.00039754,2]
[342857374,1732187438044,-2205.72671753,0.00039781,120]
[342857375,1732187438056,-14957.5272,0.00039781,120]
[342857376,1732187438127,-20766.49343535,0.00039781,120]
[342857377,1732187438141,-8355.461751,0.00039781,120]
[342857378,1732187438156,-33192.74517644,0.00039781,120]
[342857379,1732187438168,-2250.21244335,0.00039781,120]
[342857380,1732187438178,-19199.77291147,0.00039781,15]
[342858625,1732187459986,-627.94458315,0.00039781,15]
[342858626,1732187460005,-8975.53944,0.00039781,15]
[342858627,1732187460017,-711.35639154,0.00039781,15]
[342858628,1732187460028,-252.91342936,0.00039781,15]
[342858629,1732187460384,-9034.9088835,0.00039781,15]
[342858630,1732187460394,-5668.21609528,0.00039781,15]
[342858631,1732187460403,-150.0,0.0003979,2]
[342858632,1732187460412,-150.0,0.00039795,2]
[342858633,1732187460421,-27157.1500981,0.000398,2]
[342858634,1732187460431,-4047.64631837,0.000398,7]
[342858635,1732187460440,-150.0,0.00039805,2]
[342858636,1732187460449,-433.33,0.00039808,2]
[342858637,1732187460459,-866.66,0.00039808,2]
[342858638,1732187460468,-433.33,0.00039808,2]
[342858639,1732187460478,-150.0,0.0003981,2]
[342858640,1732187460487,-150.0,0.00039884,2]
[342858641,1732187460496,-500.0,0.000399,14]
[342858642,1732187460505,-150.0,0.00039927,2]
[342858643,1732187460514,-150.0,0.0003994,2]
[342858644,1732187460524,-150.0,0.0003995,2]
[342858645,1732187460534,-150.0,0.00039951,2]
[342858646,1732187460543,-150.0,0.00039952,2]
[342858647,1732187460553,-150.0,0.00039984,2]
[342858648,1732187460562,-1401.02302968,0.0003999,120]
[342858649,1732187460571,-1000.0,0.00039999,2]
[342858650,1732187460580,-150.0,0.00039999,2]
[342858651,1732187460590,-9403.03010116,0.0004,10]
[342858652,1732187460601,-278.74722259,0.0004,10]
[342858653,1732187460612,-5367.1743912,0.0004,10]
[342858654,1732187460623,-2511.41628494,0.0004,10]
[342858655,1732187460634,-3253.29148928,0.0004,10]
[342858656,1732187460646,-29186.34051083,0.0004,10]
[342858657,1732187460655,-50000.0,0.0004,20]
[342858658,1732187460664,-50000.0,0.0004,30]
[342858659,1732187460673,-200.0,0.0004,120]
[342858660,1732187460682,-22210.29201925,0.0004,30]
[342858661,1732187460691,-2233.0,0.0004,4]
[342858662,1732187460701,-1357.96839956,0.0004,120]
[342858663,1732187460712,-337.17317156,0.0004,120]
[342858664,1732187460721,-150.0,0.00040001,2]
[342858665,1732187460730,-150.0,0.00040021,2]
[342858666,1732187460740,-150.0,0.00040024,2]
[342858667,1732187460749,-150.0,0.00040025,2]
[342858668,1732187460758,-150.0,0.00040027,2]
[342858669,1732187460768,-150.0,0.00040027,2]
[342858670,1732187460778,-150.0,0.00040075,2]
[342858671,1732187460787,-150.0,0.00040119,2]
[342858672,1732187460796,-150.0,0.00040135,2]
[342858673,1732187460805,-150.0,0.00040145,2]
[342858674,1732187460815,-38802.43563902,0.00040195,15]
[342858675,1732187460824,-250.16225979,0.00040195,15]
[342858676,1732187460884,-5418.05383549,0.00040195,15]
[342858677,1732187460893,-150.0,0.00040202,2]
[342858678,1732187460902,-150.0,0.00040208,2]
[342858679,1732187460912,-433.47,0.00040219,2]
[342858680,1732187460921,-433.47,0.00040219,2]
[342858681,1732187460930,-433.47,0.00040219,2]
[342858682,1732187460939,-433.47,0.00040219,2]
[342858683,1732187460948,-150.0,0.00040249,2]
[342858684,1732187460957,-150.0,0.00040252,2]
[342858685,1732187460971,-150.0,0.00040266,2]
[342858686,1732187460985,-433.33,0.00040274,2]
[342858687,1732187460994,-764.41,0.00040274,2]
[342858688,1732187461003,-764.41,0.00040274,2]
[342858689,1732187461012,-433.33,0.00040274,2]
[342858690,1732187461021,-764.41,0.00040274,2]
[342858691,1732187461030,-433.33,0.00040274,2]
[342858692,1732187461039,-433.33,0.00040274,2]
[342858693,1732187461049,-764.41,0.00040274,2]
[342858694,1732187461058,-433.33,0.00040274,2]
[342858695,1732187461067,-764.41,0.00040274,2]
[342858696,1732187461076,-335.23,0.00040274,2]
[342858697,1732187461085,-433.33,0.00040274,2]
[342858698,1732187461095,-420.63944857,0.00040274,2]
[342858699,1732187461106,-12.69055143,0.00040274,2]
[342858700,1732187461115,-433.33,0.00040274,2]
[342858701,1732187461126,-433.33,0.00040274,2]
[342858702,1732187461135,-433.33,0.00040274,2]
[342858703,1732187461144,-591.36403391,0.00040274,2]
[342858704,1732187461162,-91.11596609,0.00040274,2]
[342858705,1732187461176,-150.0,0.00040281,2]
[342858706,1732187461186,-500.0,0.00040281,76]
[342858707,1732187461198,-150.0,0.00040304,2]
[342858708,1732187461207,-30.15747345,0.00040318,2]
[342858709,1732187461221,-119.84252655,0.00040318,2]
[342858710,1732187461231,-2110.0,0.00040334,30]
[342858711,1732187461242,-150.0,0.00040379,2]
[342858712,1732187461252,-1500.0,0.00040392,2]
[342858713,1732187461262,-1000.0,0.000404,7]
[342858714,1732187461272,-1000.0,0.000404,7]
[342858715,1732187461281,-1623.0,0.000404,7]
[342858716,1732187461291,-1291.0,0.000404,7]
[342858717,1732187461300,-1183.33904545,0.00040421,2]
[342858718,1732187462232,-316.66095455,0.00040421,2]
[342858719,1732187462242,-150.0,0.00040437,2]
[342858720,1732187462251,-150.0,0.0004045,2]
[342858721,1732187462264,-1500.0,0.00040461,2]
[342858722,1732187462273,-150.0,0.00040472,2]
[342858723,1732187462282,-150.0,0.00040516,2]
[342858724,1732187462292,-150.0,0.00040525,2]
[342858725,1732187462303,-150.0,0.00040532,2]
[342858726,1732187462314,-481.1746777,0.00040541,4]
[342858727,1732187462323,-722.22884775,0.00040548,2]
[342858728,1732187462335,-2.89115225,0.00040548,2]
[342858729,1732187462344,-450.28,0.00040549,120]
[342858730,1732187462353,-150.0,0.00040556,2]
[342858731,1732187462362,-150.0,0.00040573,2]
[342858732,1732187462371,-151.0,0.00040575,5]
[342858733,1732187462380,-1500.0,0.0004058,2]
[342858734,1732187462389,-1100.0,0.000406,14]
[342858735,1732187462398,-626.58020013,0.000406,2]
[342858736,1732187462410,-659.05186713,0.000406,2]
[342858737,1732187462421,-214.36793274,0.000406,2]
[342858738,1732187462431,-150.0,0.00040603,2]
[342858739,1732187462440,-150.54,0.00040603,2]
[342858740,1732187462449,-150.0,0.00040603,2]
[342858741,1732187462459,-150.0,0.00040603,2]
[342858742,1732187462472,-150.0,0.00040603,2]
[342858743,1732187462481,-151.77,0.00040603,2]
[342858744,1732187462491,-5094.46856072,0.00040609,15]
[342858745,1732187462502,-1792.73891724,0.00040609,15]
[342858746,1732187462514,-5992.4968999,0.00040609,15]
[342858747,1732187462525,-3077.03718606,0.00040609,15]
[342858748,1732187462536,-22845.6940751,0.00040609,15]
[342858749,1732187462545,-5668.21609528,0.00040609,15]
[342858750,1732187462554,-150.0,0.00040615,2]
[342858751,1732187462564,-150.0,0.00040627,2]
[342858752,1732187462573,-466.38982962,0.00040641,2]
[342858753,1732187462589,-339.2867824,0.00040641,2]
[342858754,1732187462600,-150.0,0.00040643,2]
[342858755,1732187462611,-150.0,0.00040647,2]
[342858756,1732187462621,-1700.0,0.000407,14]
[342858757,1732187462632,-150.0,0.00040702,2]
[342858758,1732187462642,-3000.0,0.0004072,38]
[342858759,1732187462654,-1500.0,0.00040726,2]
[342858760,1732187462664,-150.0,0.00040737,2]
[342858761,1732187462674,-151.88493693,0.00040738,2]
[342858762,1732187462685,-150.96,0.0004074,2]
[342858763,1732187462694,-157.68,0.0004074,2]
[342858764,1732187462704,-150.0,0.0004074,2]
[342858765,1732187462717,-150.0,0.0004074,2]
[342858766,1732187462728,-150.0,0.0004074,2]
[342858767,1732187462737,-150.0,0.0004074,2]
[342858768,1732187462747,-150.0,0.0004074,2]
[342858769,1732187462756,-150.0,0.0004074,2]
[342858770,1732187462766,-150.0,0.0004074,2]
[342858771,1732187462777,-150.0,0.0004074,2]
[342858772,1732187462787,-150.0,0.00040753,2]
[342858773,1732187462796,-1000.0,0.00040777,2]
[342858774,1732187462806,-200.0,0.0004078,58]
[342858775,1732187462816,-363.0,0.000408,30]
[342858776,1732187462826,-2300.0,0.000408,14]
[342858777,1732187462836,-1000.0,0.000408,30]
[342858778,1732187462846,-229.0,0.000408,30]
[342858779,1732187462856,-150.45254273,0.00040804,2]
[342858780,1732187462865,-150.0,0.00040813,2]
[342858781,1732187462875,-1500.0,0.00040819,2]
[342858782,1732187462885,-150.0,0.00040826,2]
[342858783,1732187462895,-2110.0,0.00040834,30]
[342858784,1732187462905,-1352.82,0.00040835,2]
[342858785,1732187462914,-150.0,0.00040844,2]
[342858786,1732187462924,-433.47,0.00040849,2]
[342858787,1732187462934,-433.47,0.00040849,2]
[342858788,1732187462943,-866.94,0.00040849,2]
[342858789,1732187462953,-433.47,0.00040849,2]
[342858790,1732187462964,-150.0,0.00040852,2]
[342858791,1732187462973,-1500.0,0.00040854,2]
[342858792,1732187462982,-1500.0,0.00040862,2]
[342858793,1732187462992,-150.0,0.00040867,2]
[342858794,1732187463001,-1054.0,0.00040883,5]
[342858795,1732187463010,-114.83703979,0.00040889,2]
[342858796,1732187463020,-150.0,0.0004089,2]
[342858797,1732187463029,-2800.0,0.000409,14]
[342858798,1732187463039,-150.0,0.00040902,2]
[342858799,1732187463049,-764.41,0.00040915,2]
[342858800,1732187463059,-866.66,0.00040915,2]
[342858801,1732187463069,-764.41,0.00040915,2]
[342858802,1732187463079,-433.33,0.00040915,2]
[342858803,1732187463089,-764.41,0.00040915,2]
[342858804,1732187463099,-764.41,0.00040915,2]
[342858805,1732187463109,-433.33,0.00040915,2]
[342858806,1732187463119,-764.41,0.00040915,2]
[342858807,1732187463128,-433.33,0.00040915,2]
[342858808,1732187463138,-1500.0,0.00040938,2]
[342858809,1732187463148,-150.0,0.00040951,2]
[342858810,1732187463158,-200.0,0.00040952,2]
[342858811,1732187463171,-1500.0,0.00040952,2]
[342858812,1732187463180,-150.0,0.00040956,2]
[342858813,1732187463189,-1500.0,0.00040966,2]
[342858814,1732187463199,-1500.0,0.00040977,2]
[342858815,1732187463209,-150.0,0.00040978,2]
[342858816,1732187463225,-1000.0,0.00040987,36]
[342858817,1732187463235,-50000.0,0.00041,11]
[342858818,1732187463246,-50000.0,0.00041,21]
[342858819,1732187463257,-50000.0,0.00041,31]
[342858820,1732187463267,-2016.02869818,0.00041,117]
[342858821,1732187463281,-66.97130182,0.00041,117]
[342858822,1732187463292,-500.0,0.00041,2]
[342858823,1732187463302,-150.0,0.00041013,2]
[342858824,1732187463313,-150.0,0.00041016,2]
[342858825,1732187463324,-150.0,0.00041021,2]
[342858826,1732187463334,-6384.80956828,0.00041024,15]
[342858827,1732187463347,-15028.12786707,0.00041024,15]
[342858828,1732187463359,-17389.49820367,0.00041024,15]
[342858829,1732187463370,-5668.21609528,0.00041024,15]
[342858830,1732187463380,-150.0,0.00041032,2]
[342858831,1732187463391,-204.0,0.0004104,30]
[342858832,1732187463401,-201.0,0.0004104,30]
[342858833,1732187463411,-240.0,0.0004104,2]
[342858834,1732187463422,-150.0,0.0004104,2]
[342858835,1732187463432,-150.0,0.0004104,2]
[342858836,1732187463442,-150.0,0.00041046,2]
[342858837,1732187463452,-150.0,0.00041052,2]
[342858838,1732187463466,-377.3,0.00041052,2]
[342858839,1732187463481,-150.0,0.00041052,2]
[342858840,1732187463491,-362.63,0.00041052,2]
[342858841,1732187463502,-150.0,0.00041052,2]
[342858842,1732187463512,-300.0,0.00041052,2]
[342858843,1732187463522,-150.0,0.00041052,2]
[342858844,1732187463532,-362.63,0.00041052,2]
[342858845,1732187463541,-150.0,0.00041052,2]
[342858846,1732187463551,-362.63,0.00041052,2]
[342858847,1732187463561,-362.63,0.00041052,2]
[342858848,1732187463572,-300.0,0.00041052,2]
[342858849,1732187463582,-362.63,0.00041052,2]
[342858850,1732187463592,-725.26,0.00041052,2]
[342858851,1732187463602,-150.0,0.00041066,2]
[342858852,1732187463613,-150.0,0.0004107,2]
[342858853,1732187463623,-150.0,0.00041072,2]
[342858854,1732187463634,-150.0,0.00041073,2]
[342858855,1732187463644,-150.0,0.00041076,2]
[342858856,1732187463654,-151.0,0.00041078,14]
[342858857,1732187463665,-150.0,0.00041082,2]
[342858858,1732187463676,-1066.51443,0.00041088,30]
[342858859,1732187463686,-11274.99667105,0.0004109,2]
[342858860,1732187463699,-592.6801185,0.0004109,2]
[342858861,1732187463720,-443.04746471,0.0004109,2]
[342858862,1732187464342,-462.85,0.00038567,10]
[342858863,1732187464352,-1225.35379274,0.0004109,2]
[342858864,1732187464364,-32420.58142189,0.0004109,2]
[342858865,1732187464387,-2410.85040594,0.0004109,2]